[Event "RUS-ch Blitz 2021"]
[Site "Sochi"]
[Date "2021.10.11"]
[Round "7.24"]
[White "Grebnev, Aleksey"]
[Black "Nesterov, Arseniy"]
[Result "1-0"]
[ECO "C55"]
[WhiteElo "2469"]
[BlackElo "2514"]
[Annotator "ChessBase"]
[PlyCount "133"]
[EventDate "2021.10.11"]
[EventType "blitz"]
[EventCountry "RUS"]
[SourceTitle "playchess.com"]
[Source "ChessBase"]
[SourceQuality "1"]
[TimeControl "180+2"]

1. e4 {[%emt 0:00:00]} e5 {[%emt 0:00:00]} 2. Bc4 {[%emt 0:00:07]} Nc6 {
[%emt 0:00:16]} 3. d3 {[%emt 0:00:00]} Nf6 {[%emt 0:00:00]} 4. Nc3 {[%emt 0:00:
00]} Na5 {[%emt 0:00:00]} 5. Bb3 {[%emt 0:00:00]} Nxb3 {[%emt 0:00:00]} 6. axb3
{[%emt 0:00:00]} d6 {[%emt 0:00:04]} 7. Nf3 {[%emt 0:00:04]} Be7 {[%emt 0:00:
00]} 8. O-O {[%emt 0:00:12]} O-O {[%emt 0:00:00]} 9. h3 {[%emt 0:00:03]} b6 {
[%emt 0:00:13]} 10. Ne2 {[%emt 0:00:15]} Bb7 {[%emt 0:00:00]} 11. Ng3 {[%emt 0:
00:00]} g6 {[%emt 0:00:05]} 12. Bh6 {[%emt 0:00:05]} Re8 {[%emt 0:00:00]} 13.
Re1 {[%emt 0:00:00]} Nd7 {[%emt 0:00:07]} 14. Qd2 {[%emt 0:00:08]} a5 {[%emt 0:
00:12]} 15. Kh2 {[%emt 0:00:11]} Bf6 {[%emt 0:00:07]} 16. Bg5 {[%emt 0:00:07]}
Nc5 {[%emt 0:00:14]} 17. Bxf6 {[%emt 0:00:17]} Qxf6 {[%emt 0:00:01]} 18. b4 {
[%emt 0:00:00]} axb4 {[%emt 0:00:07]} 19. Qxb4 {[%emt 0:00:01]} Ne6 {[%emt 0:
00:02]} 20. Ne2 {[%emt 0:00:06]} Nf4 {[%emt 0:00:29]} 21. Nxf4 {[%emt 0:00:24]}
Qxf4+ {[%emt 0:00:00]} 22. Kg1 {[%emt 0:00:04]} Rxa1 {[%emt 0:00:37]} 23. Rxa1
{[%emt 0:00:00]} d5 {[%emt 0:00:04]} 24. Qb5 {[%emt 0:00:55]} Rd8 {[%emt 0:00:
08]} 25. Re1 {[%emt 0:00:44]} dxe4 {[%emt 0:00:09]} 26. Qxe5 {[%emt 0:00:00]}
Qxe5 {[%emt 0:00:19]} 27. Nxe5 {[%emt 0:00:00]} f6 {[%emt 0:00:13]} 28. Ng4 {
[%emt 0:00:00]} exd3 {[%emt 0:00:03]} 29. cxd3 {[%emt 0:00:03]} Kf7 {[%emt 0:
00:00]} 30. Re3 {[%emt 0:00:11]} Ba6 {[%emt 0:00:09]} 31. Rf3 {[%emt 0:00:03]}
Rd6 {[%emt 0:00:06]} 32. Ne5+ {[%emt 0:00:00]} Ke6 {[%emt 0:00:02]} 33. Nc4 {
[%emt 0:00:02]} Rd4 {[%emt 0:00:02]} 34. b3 {[%emt 0:00:00]} Rd5 {[%emt 0:00:
09]} 35. Kf1 {[%emt 0:00:05]} Rb5 {[%emt 0:00:05]} 36. Nd2 {[%emt 0:00:00]} Ra5
{[%emt 0:00:00]} 37. Ke2 {[%emt 0:00:02]} Ra2 {[%emt 0:00:02]} 38. Ke3 {
[%emt 0:00:00]} Bb7 {[%emt 0:00:00]} 39. Rg3 {[%emt 0:00:05]} f5 {[%emt 0:00:
01]} 40. h4 {[%emt 0:00:06]} Kf6 {[%emt 0:00:00]} 41. d4 {[%emt 0:00:00]} h6 {
[%emt 0:00:00]} 42. Kd3 {[%emt 0:00:00]} f4 {[%emt 0:00:00]} 43. Rg4 {[%emt 0:
00:00]} g5 {[%emt 0:00:15]} 44. hxg5+ {[%emt 0:00:01]} hxg5 {[%emt 0:00:01]}
45. f3 {[%emt 0:00:03]} Ra8 {[%emt 0:00:06]} 46. g3 {[%emt 0:00:00]} fxg3 {
[%emt 0:00:02]} 47. Rxg3 {[%emt 0:00:00]} Kf5 {[%emt 0:00:00]} 48. Rg1 {
[%emt 0:00:04]} Re8 {[%emt 0:00:06]} 49. Rc1 {[%emt 0:00:00]} Re7 {[%emt 0:00:
00]} 50. Rg1 {[%emt 0:00:00]} Ba6+ {[%emt 0:00:01]} 51. Kc2 {[%emt 0:00:05]}
Re3 {[%emt 0:00:00]} 52. Rg3 {[%emt 0:00:04]} Bb7 {[%emt 0:00:03]} 53. Kb2 {
[%emt 0:00:06]} Bd5 {[%emt 0:00:04]} 54. Kc2 {[%emt 0:00:00]} b5 {[%emt 0:00:
02]} 55. Kb2 {[%emt 0:00:04]} b4 {[%emt 0:00:00]} 56. Kc2 {[%emt 0:00:02]} c6 {
[%emt 0:00:00]} 57. Kb2 {[%emt 0:00:00]} Rd3 {[%emt 0:00:01]} 58. Kc2 {[%emt 0:
00:03]} Rxd4 {[%emt 0:00:03]} 59. Rg1 {[%emt 0:00:01]} Rf4 {[%emt 0:00:00]} 60.
Rg3 {[%emt 0:00:02]} c5 {[%emt 0:00:04]} 61. Kd3 {[%emt 0:00:00]} Rd4+ {
[%emt 0:00:01]} 62. Ke3 {[%emt 0:00:01]} Bc6 {[%emt 0:00:04]} 63. Rg1 {[%emt 0:
00:00]} Rd7 {[%emt 0:00:03]} 64. Rc1 {[%emt 0:00:01]} Re7+ {[%emt 0:00:02]} 65.
Kf2 {[%emt 0:00:02]} Re5 {[%emt 0:00:00]} 66. Nc4 {[%emt 0:00:02]} Rd5 {
[%emt 0:00:00]} 67. Ne3+ {[%emt 0:00:01]} 1-0

[Event "RUS-ch Blitz 2021"]
[Site "Sochi"]
[Date "2021.10.11"]
[Round "8.2"]
[White "Timofeev, Artyom"]
[Black "Iljiushenok, Ilia"]
[Result "0-1"]
[ECO "A24"]
[WhiteElo "2586"]
[BlackElo "2554"]
[Annotator "ChessBase"]
[PlyCount "136"]
[EventDate "2021.10.11"]
[EventType "blitz"]
[EventCountry "RUS"]
[SourceTitle "playchess.com"]
[Source "ChessBase"]
[SourceQuality "1"]
[TimeControl "180+2"]

1. c4 {[%emt 0:00:00]} Nf6 {[%emt 0:00:05]} 2. Nc3 {[%emt 0:00:01]} g6 {
[%emt 0:00:00]} 3. g3 {[%emt 0:00:00]} Bg7 {[%emt 0:00:00]} 4. Bg2 {[%emt 0:00:
14]} O-O {[%emt 0:00:00]} 5. d3 {[%emt 0:00:00]} d6 {[%emt 0:00:04]} 6. Nf3 {
[%emt 0:00:00]} e5 {[%emt 0:00:23]} 7. O-O {[%emt 0:00:00]} c6 {[%emt 0:00:07]}
8. h3 {[%emt 0:00:03]} h6 {[%emt 0:00:02]} 9. e4 {[%emt 0:00:03]} Nbd7 {
[%emt 0:00:18]} 10. Be3 {[%emt 0:00:01]} a6 {[%emt 0:00:07]} 11. Qd2 {[%emt 0:
00:10]} Kh7 {[%emt 0:00:00]} 12. Rfe1 {[%emt 0:00:34]} b5 {[%emt 0:00:06]} 13.
b3 {[%emt 0:00:00]} b4 {[%emt 0:00:14]} 14. Ne2 {[%emt 0:00:00]} c5 {[%emt 0:
00:02]} 15. g4 {[%emt 0:00:06]} Ne8 {[%emt 0:00:07]} 16. a3 {[%emt 0:00:10]}
Rb8 {[%emt 0:00:07]} 17. axb4 {[%emt 0:00:00]} Rxb4 {[%emt 0:00:00]} 18. Qc2 {
[%emt 0:00:11]} Nc7 {[%emt 0:00:11]} 19. Ra4 {[%emt 0:00:05]} Rb8 {[%emt 0:00:
05]} 20. Nc3 {[%emt 0:00:03]} Ne6 {[%emt 0:00:05]} 21. Nd5 {[%emt 0:00:02]} Nb6
{[%emt 0:00:06]} 22. Ra2 {[%emt 0:00:09]} Nxd5 {[%emt 0:00:00]} 23. cxd5 {
[%emt 0:00:06]} Nd4 {[%emt 0:00:04]} 24. Nxd4 {[%emt 0:00:10]} exd4 {[%emt 0:
00:31]} 25. Bf4 {[%emt 0:00:02]} Re8 {[%emt 0:00:19]} 26. Raa1 {[%emt 0:00:08]}
Qb6 {[%emt 0:00:02]} 27. Qd2 {[%emt 0:00:19]} Bd7 {[%emt 0:00:11]} 28. Qa5 {
[%emt 0:00:36]} Bf8 {[%emt 0:00:10]} 29. Qxa6 {[%emt 0:00:07]} Qxa6 {[%emt 0:
00:04]} 30. Rxa6 {[%emt 0:00:04]} Rxb3 {[%emt 0:00:02]} 31. Bxd6 {[%emt 0:00:
02]} Bc8 {[%emt 0:00:08]} 32. Rc6 {[%emt 0:00:08]} Bb7 {[%emt 0:00:02]} 33.
Bxf8 {[%emt 0:00:00]} Bxc6 {[%emt 0:00:00]} 34. Bxc5 {[%emt 0:00:06]} Bxd5 {
[%emt 0:00:00]} 35. Ra1 {[%emt 0:00:14]} Be6 {[%emt 0:00:02]} 36. Bf1 {[%emt 0:
00:02]} Rd8 {[%emt 0:00:12]} 37. Ra4 {[%emt 0:00:00]} Rb1 {[%emt 0:00:03]} 38.
Kg2 {[%emt 0:00:00]} f5 {[%emt 0:00:03]} 39. Ra7+ {[%emt 0:00:11]} Rd7 {
[%emt 0:00:00]} 40. Rxd7+ {[%emt 0:00:00]} Bxd7 {[%emt 0:00:02]} 41. gxf5 {
[%emt 0:00:01]} gxf5 {[%emt 0:00:00]} 42. exf5 {[%emt 0:00:05]} Bxf5 {[%emt 0:
00:06]} 43. Bxd4 {[%emt 0:00:01]} Bxh3+ {[%emt 0:00:02]} 44. Kxh3 {[%emt 0:00:
04]} Rxf1 {[%emt 0:00:00]} 45. Be3 {[%emt 0:00:00]} Rg1 {[%emt 0:00:07]} 46.
Kh2 {[%emt 0:00:00]} Rg8 {[%emt 0:00:00]} 47. d4 {[%emt 0:00:00]} h5 {[%emt 0:
00:05]} 48. Kh3 {[%emt 0:00:00]} Rg4 {[%emt 0:00:05]} 49. Kh2 {[%emt 0:00:02]}
Kg6 {[%emt 0:00:02]} 50. Kh3 {[%emt 0:00:02]} Kf5 {[%emt 0:00:01]} 51. Kh2 {
[%emt 0:00:00]} Rg8 {[%emt 0:00:01]} 52. Kh3 {[%emt 0:00:00]} Re8 {[%emt 0:00:
03]} 53. Kh4 {[%emt 0:00:03]} Kg6 {[%emt 0:00:02]} 54. Kh3 {[%emt 0:00:00]} Re4
{[%emt 0:00:01]} 55. Kg2 {[%emt 0:00:03]} Kf5 {[%emt 0:00:02]} 56. Kh3 {
[%emt 0:00:01]} Kf6 {[%emt 0:00:03]} 57. Kh2 {[%emt 0:00:00]} Kg6 {[%emt 0:00:
02]} 58. Kg2 {[%emt 0:00:00]} h4 {[%emt 0:00:01]} 59. Kh3 {[%emt 0:00:02]} Kh5
{[%emt 0:00:04]} 60. d5 {[%emt 0:00:08]} Re5 {[%emt 0:00:00]} 61. d6 {[%emt 0:
00:01]} Rd5 {[%emt 0:00:01]} 62. f3 {[%emt 0:00:17]} Rd3 {[%emt 0:00:02]} 63.
d7 {[%emt 0:00:01]} Rxd7 {[%emt 0:00:02]} 64. Bf2 {[%emt 0:00:00]} Rd1 {
[%emt 0:00:07]} 65. Kg2 {[%emt 0:00:04]} Rd2 {[%emt 0:00:02]} 66. Kg1 {[%emt 0:
00:03]} Ra2 {[%emt 0:00:01]} 67. Be1 {[%emt 0:00:02]} Kg5 {[%emt 0:00:01]} 68.
Kh1 {[%emt 0:00:02]} Ra1 {[%emt 0:00:03]} 0-1

[Event "RUS-ch Blitz 2021"]
[Site "Sochi"]
[Date "2021.10.11"]
[Round "8.3"]
[White "Pridorozhni, Aleksei"]
[Black "Vastrukhin, Oleg"]
[Result "1-0"]
[ECO "C01"]
[WhiteElo "2564"]
[BlackElo "2382"]
[Annotator "ChessBase"]
[PlyCount "55"]
[EventDate "2021.10.11"]
[EventType "blitz"]
[EventCountry "RUS"]
[SourceTitle "playchess.com"]
[Source "ChessBase"]
[SourceQuality "1"]
[TimeControl "180+2"]

1. e4 {[%emt 0:00:00]} e6 {[%emt 0:00:00]} 2. d4 {[%emt 0:00:07]} d5 {[%emt 0:
00:01]} 3. Nc3 {[%emt 0:00:00]} Bb4 {[%emt 0:00:11]} 4. exd5 {[%emt 0:00:00]}
exd5 {[%emt 0:00:00]} 5. Bd3 {[%emt 0:00:00]} Ne7 {[%emt 0:00:00]} 6. Qh5 {
[%emt 0:00:00]} Nbc6 {[%emt 0:00:00]} 7. a3 {[%emt 0:00:11]} Bd6 {[%emt 0:00:
00]} 8. Nge2 {[%emt 0:00:00]} Be6 {[%emt 0:00:02]} 9. h3 {[%emt 0:00:07]} Qd7 {
[%emt 0:00:08]} 10. Nb5 {[%emt 0:00:00]} O-O-O {[%emt 0:00:08]} 11. Nxd6+ {
[%emt 0:00:07]} Qxd6 {[%emt 0:00:00]} 12. c3 {[%emt 0:00:06]} g6 {[%emt 0:00:
05]} 13. Qf3 {[%emt 0:00:06]} Bf5 {[%emt 0:00:00]} 14. Bf4 {[%emt 0:00:05]} Qd7
{[%emt 0:00:12]} 15. b4 {[%emt 0:00:24]} Rde8 {[%emt 0:00:04]} 16. O-O {
[%emt 0:00:06]} f6 {[%emt 0:00:03]} 17. Rfe1 {[%emt 0:00:10]} h5 {[%emt 0:00:
07]} 18. Bh2 {[%emt 0:00:07]} g5 {[%emt 0:00:14]} 19. Bxf5 {[%emt 0:00:15]}
Nxf5 {[%emt 0:00:05]} 20. Ng3 {[%emt 0:00:06]} Nxg3 {[%emt 0:00:17]} 21. Bxg3 {
[%emt 0:00:00]} h4 {[%emt 0:00:05]} 22. Bh2 {[%emt 0:00:00]} Rxe1+ {[%emt 0:00:
02]} 23. Rxe1 {[%emt 0:00:05]} Re8 {[%emt 0:00:02]} 24. Rxe8+ {[%emt 0:00:17]}
Qxe8 {[%emt 0:00:00]} 25. g3 {[%emt 0:00:04]} hxg3 {[%emt 0:00:20]} 26. Bxg3 {
[%emt 0:00:00]} Qe6 {[%emt 0:00:03]} 27. Qh5 {[%emt 0:00:01]} Ne7 {[%emt 0:00:
06]} 28. Qe8# {[%emt 0:00:05]} 1-0

[Event "RUS-ch Blitz 2021"]
[Site "Sochi"]
[Date "2021.10.11"]
[Round "8.4"]
[White "Alekseev, Evgeny"]
[Black "Savchenko, Boris"]
[Result "1/2-1/2"]
[ECO "B52"]
[WhiteElo "2602"]
[BlackElo "2535"]
[Annotator "ChessBase"]
[PlyCount "53"]
[EventDate "2021.10.11"]
[EventType "blitz"]
[EventCountry "RUS"]
[SourceTitle "playchess.com"]
[Source "ChessBase"]
[SourceQuality "1"]
[TimeControl "180+2"]

1. e4 {[%emt 0:00:00]} c5 {[%emt 0:00:07]} 2. Nf3 {[%emt 0:00:01]} d6 {[%emt 0:
00:00]} 3. Bb5+ {[%emt 0:00:00]} Bd7 {[%emt 0:00:00]} 4. Bxd7+ {[%emt 0:00:12]}
Qxd7 {[%emt 0:00:00]} 5. c4 {[%emt 0:00:00]} g6 {[%emt 0:00:00]} 6. d4 {
[%emt 0:00:04]} cxd4 {[%emt 0:00:01]} 7. Nxd4 {[%emt 0:00:00]} Bg7 {[%emt 0:00:
12]} 8. Nc3 {[%emt 0:00:00]} Nc6 {[%emt 0:00:10]} 9. Be3 {[%emt 0:00:05]} Nf6 {
[%emt 0:00:00]} 10. f3 {[%emt 0:00:00]} O-O {[%emt 0:00:00]} 11. O-O {[%emt 0:
00:00]} Rac8 {[%emt 0:00:00]} 12. b3 {[%emt 0:00:11]} a6 {[%emt 0:00:06]} 13.
Qd3 {[%emt 0:00:18]} Qd8 {[%emt 0:00:14]} 14. Rac1 {[%emt 0:00:12]} Nd7 {
[%emt 0:00:00]} 15. Rfd1 {[%emt 0:00:05]} Nc5 {[%emt 0:00:13]} 16. Qd2 {
[%emt 0:00:03]} Ne5 {[%emt 0:00:05]} 17. Qe2 {[%emt 0:00:14]} h5 {[%emt 0:00:
06]} 18. Nd5 {[%emt 0:00:03]} e6 {[%emt 0:00:00]} 19. Nc3 {[%emt 0:00:00]} Qe7
{[%emt 0:00:04]} 20. Rc2 {[%emt 0:00:11]} Rfd8 {[%emt 0:00:07]} 21. Rcd2 {
[%emt 0:00:07]} Kh7 {[%emt 0:00:12]} 22. Rc2 {[%emt 0:00:08]} Bf6 {[%emt 0:00:
19]} 23. Qd2 {[%emt 0:00:00]} Ned3 {[%emt 0:00:03]} 24. Qe2 {[%emt 0:00:28]}
Ne5 {[%emt 0:00:00]} 25. Qd2 {[%emt 0:00:00]} Ned3 {[%emt 0:00:10]} 26. Qe2 {
[%emt 0:00:00]} Ne5 {[%emt 0:00:01]} 27. Ra1 {[%emt 0:00:02]} 1/2-1/2

[Event "RUS-ch Blitz 2021"]
[Site "Sochi"]
[Date "2021.10.11"]
[Round "8.5"]
[White "Trushnikov, Sergey"]
[Black "Antipov, Mikhail Al."]
[Result "0-1"]
[ECO "C47"]
[WhiteElo "2525"]
[BlackElo "2619"]
[Annotator "ChessBase"]
[PlyCount "68"]
[EventDate "2021.10.11"]
[EventType "blitz"]
[EventCountry "RUS"]
[SourceTitle "playchess.com"]
[Source "ChessBase"]
[SourceQuality "1"]
[TimeControl "180+2"]

1. e4 {[%emt 0:00:00]} e5 {[%emt 0:00:00]} 2. Nf3 {[%emt 0:00:00]} Nc6 {
[%emt 0:00:00]} 3. Nc3 {[%emt 0:00:00]} Nf6 {[%emt 0:00:00]} 4. d4 {[%emt 0:00:
00]} exd4 {[%emt 0:00:00]} 5. Nxd4 {[%emt 0:00:00]} Bb4 {[%emt 0:00:00]} 6.
Nxc6 {[%emt 0:00:00]} bxc6 {[%emt 0:00:00]} 7. Bd3 {[%emt 0:00:25]} d5 {
[%emt 0:00:07]} 8. exd5 {[%emt 0:00:00]} cxd5 {[%emt 0:00:00]} 9. O-O {[%emt 0:
00:00]} O-O {[%emt 0:00:00]} 10. Bg5 {[%emt 0:00:00]} c6 {[%emt 0:00:00]} 11.
Qf3 {[%emt 0:00:00]} Be7 {[%emt 0:00:00]} 12. Rae1 {[%emt 0:00:00]} h6 {
[%emt 0:00:00]} 13. Bf4 {[%emt 0:00:00]} Nd7 {[%emt 0:00:49]} 14. Qe3 {[%emt 0:
00:32]} Bg5 {[%emt 0:00:48]} 15. Bxg5 {[%emt 0:00:00]} Qxg5 {[%emt 0:00:00]}
16. Qxg5 {[%emt 0:00:18]} hxg5 {[%emt 0:00:00]} 17. Na4 {[%emt 0:00:00]} Rd8 {
[%emt 0:00:16]} 18. f4 {[%emt 0:00:20]} g4 {[%emt 0:00:09]} 19. Bf5 {[%emt 0:
00:23]} Nb6 {[%emt 0:00:27]} 20. Nxb6 {[%emt 0:00:25]} axb6 {[%emt 0:00:02]}
21. Bxc8 {[%emt 0:00:00]} Rdxc8 {[%emt 0:00:00]} 22. a3 {[%emt 0:00:02]} Re8 {
[%emt 0:00:23]} 23. Kf2 {[%emt 0:00:07]} Kf8 {[%emt 0:00:00]} 24. Kg3 {[%emt 0:
00:10]} f5 {[%emt 0:00:06]} 25. Kf2 {[%emt 0:00:22]} Re4 {[%emt 0:00:14]} 26.
Rxe4 {[%emt 0:00:15]} dxe4 {[%emt 0:00:00]} 27. Rd1 {[%emt 0:00:12]} Ke7 {
[%emt 0:00:00]} 28. Rd4 {[%emt 0:00:03]} c5 {[%emt 0:00:34]} 29. Rd2 {[%emt 0:
00:00]} Rh8 {[%emt 0:00:03]} 30. Kg1 {[%emt 0:00:18]} Ke6 {[%emt 0:00:00]} 31.
g3 {[%emt 0:00:00]} b5 {[%emt 0:00:04]} 32. Rd1 {[%emt 0:00:05]} Ra8 {[%emt 0:
00:00]} 33. Kf2 {[%emt 0:00:06]} Ra4 {[%emt 0:00:04]} 34. Ke3 {[%emt 0:00:05]}
b4 {[%emt 0:00:00]} 0-1

[Event "RUS-ch Blitz 2021"]
[Site "Sochi"]
[Date "2021.10.11"]
[Round "8.6"]
[White "Murzin, Volodar"]
[Black "Petrov, Nikita"]
[Result "0-1"]
[ECO "B40"]
[WhiteElo "2513"]
[BlackElo "2539"]
[Annotator "ChessBase"]
[PlyCount "94"]
[EventDate "2021.10.11"]
[EventType "blitz"]
[EventCountry "RUS"]
[SourceTitle "playchess.com"]
[Source "ChessBase"]
[SourceQuality "1"]
[TimeControl "180+2"]

1. e4 {[%emt 0:00:00]} c5 {[%emt 0:00:00]} 2. Nf3 {[%emt 0:00:00]} e6 {[%emt 0:
00:00]} 3. g3 {[%emt 0:00:00]} Nc6 {[%emt 0:00:13]} 4. Bg2 {[%emt 0:00:03]} Nf6
{[%emt 0:00:00]} 5. Qe2 {[%emt 0:00:00]} e5 {[%emt 0:00:08]} 6. O-O {[%emt 0:
00:03]} d6 {[%emt 0:00:01]} 7. Nc3 {[%emt 0:00:36]} Be7 {[%emt 0:00:00]} 8. Nd5
{[%emt 0:00:03]} Be6 {[%emt 0:00:06]} 9. Ne1 {[%emt 0:00:05]} O-O {[%emt 0:00:
13]} 10. c3 {[%emt 0:00:00]} Kh8 {[%emt 0:00:11]} 11. Nc2 {[%emt 0:00:04]} Bg4
{[%emt 0:00:06]} 12. Qe1 {[%emt 0:00:23]} Nxd5 {[%emt 0:00:05]} 13. exd5 {
[%emt 0:00:03]} Nb8 {[%emt 0:00:00]} 14. Ne3 {[%emt 0:00:59]} Bh5 {[%emt 0:00:
07]} 15. d3 {[%emt 0:00:30]} Nd7 {[%emt 0:00:08]} 16. Nf5 {[%emt 0:00:23]} Bg6
{[%emt 0:00:00]} 17. Nxe7 {[%emt 0:00:05]} Qxe7 {[%emt 0:00:00]} 18. Qe2 {
[%emt 0:00:08]} b5 {[%emt 0:00:58]} 19. a4 {[%emt 0:00:04]} b4 {[%emt 0:00:03]}
20. cxb4 {[%emt 0:00:07]} cxb4 {[%emt 0:00:00]} 21. Be3 {[%emt 0:00:00]} f5 {
[%emt 0:00:28]} 22. Rac1 {[%emt 0:00:00]} Nf6 {[%emt 0:00:06]} 23. a5 {[%emt 0:
00:07]} Bh5 {[%emt 0:00:00]} 24. Qd2 {[%emt 0:00:03]} f4 {[%emt 0:00:00]} 25.
gxf4 {[%emt 0:00:00]} Ng4 {[%emt 0:00:05]} 26. h3 {[%emt 0:00:00]} exf4 {
[%emt 0:00:14]} 27. hxg4 {[%emt 0:00:01]} fxe3 {[%emt 0:00:27]} 28. Qxe3 {
[%emt 0:00:01]} Qxe3 {[%emt 0:00:00]} 29. fxe3 {[%emt 0:00:00]} Bxg4 {[%emt 0:
00:02]} 30. Rxf8+ {[%emt 0:00:02]} Rxf8 {[%emt 0:00:00]} 31. Rc7 {[%emt 0:00:
00]} Be2 {[%emt 0:00:01]} 32. d4 {[%emt 0:00:02]} g5 {[%emt 0:00:08]} 33. Rxa7
{[%emt 0:00:05]} h5 {[%emt 0:00:00]} 34. e4 {[%emt 0:00:04]} g4 {[%emt 0:00:00]
} 35. e5 {[%emt 0:00:00]} h4 {[%emt 0:00:07]} 36. Be4 {[%emt 0:00:00]} h3 {
[%emt 0:00:01]} 37. Kh2 {[%emt 0:00:05]} Bf3 {[%emt 0:00:05]} 38. Bd3 {[%emt 0:
00:07]} dxe5 {[%emt 0:00:00]} 39. dxe5 {[%emt 0:00:01]} Bxd5 {[%emt 0:00:02]}
40. Bb1 {[%emt 0:00:05]} Rf2+ {[%emt 0:00:01]} 41. Kg3 {[%emt 0:00:01]} Rg2+ {
[%emt 0:00:03]} 42. Kf4 {[%emt 0:00:00]} h2 {[%emt 0:00:04]} 43. Rh7+ {[%emt 0:
00:00]} Kg8 {[%emt 0:00:03]} 44. a6 {[%emt 0:00:00]} Rxb2 {[%emt 0:00:02]} 45.
Bg6 {[%emt 0:00:04]} h1=Q {[%emt 0:00:03]} 46. Rxh1 {[%emt 0:00:01]} Bxh1 {
[%emt 0:00:01]} 47. e6 {[%emt 0:00:01]} Kf8 {[%emt 0:00:01]} 0-1

[Event "RUS-ch Blitz 2021"]
[Site "Sochi"]
[Date "2021.10.11"]
[Round "8.7"]
[White "Sakaev, Konstantin"]
[Black "Riazantsev, Alexander"]
[Result "1-0"]
[ECO "D46"]
[WhiteElo "2603"]
[BlackElo "2634"]
[Annotator "ChessBase"]
[PlyCount "73"]
[EventDate "2021.10.11"]
[EventType "blitz"]
[EventCountry "RUS"]
[SourceTitle "playchess.com"]
[Source "ChessBase"]
[SourceQuality "1"]
[TimeControl "180+2"]

1. d4 {[%emt 0:00:00]} Nf6 {[%emt 0:00:00]} 2. c4 {[%emt 0:00:07]} e6 {[%emt 0:
00:03]} 3. Nc3 {[%emt 0:00:00]} Bb4 {[%emt 0:00:00]} 4. e3 {[%emt 0:00:07]} O-O
{[%emt 0:00:02]} 5. Bd3 {[%emt 0:00:00]} d5 {[%emt 0:00:00]} 6. a3 {[%emt 0:00:
05]} Be7 {[%emt 0:00:16]} 7. Nf3 {[%emt 0:00:05]} Nbd7 {[%emt 0:00:07]} 8. O-O
{[%emt 0:00:07]} dxc4 {[%emt 0:00:00]} 9. Bxc4 {[%emt 0:00:00]} c5 {[%emt 0:00:
02]} 10. Qe2 {[%emt 0:00:22]} a6 {[%emt 0:00:08]} 11. dxc5 {[%emt 0:00:08]}
Bxc5 {[%emt 0:00:08]} 12. e4 {[%emt 0:00:14]} b5 {[%emt 0:00:45]} 13. Ba2 {
[%emt 0:00:02]} Bb7 {[%emt 0:00:08]} 14. e5 {[%emt 0:00:15]} Bxf3 {[%emt 0:00:
29]} 15. gxf3 {[%emt 0:00:04]} Nh5 {[%emt 0:00:00]} 16. f4 {[%emt 0:00:08]} Qh4
{[%emt 0:00:05]} 17. Qf3 {[%emt 0:00:11]} Bb6 {[%emt 0:00:30]} 18. Ne4 {
[%emt 0:00:08]} Nc5 {[%emt 0:00:00]} 19. Nd6 {[%emt 0:00:12]} g6 {[%emt 0:00:
10]} 20. Be3 {[%emt 0:00:02]} Na4 {[%emt 0:00:00]} 21. b4 {[%emt 0:00:42]} Bxe3
{[%emt 0:00:31]} 22. fxe3 {[%emt 0:00:00]} Nc3 {[%emt 0:00:00]} 23. Bb3 {
[%emt 0:00:04]} a5 {[%emt 0:00:08]} 24. Rac1 {[%emt 0:00:04]} axb4 {[%emt 0:00:
04]} 25. axb4 {[%emt 0:00:00]} Nd5 {[%emt 0:00:03]} 26. Bxd5 {[%emt 0:00:00]}
exd5 {[%emt 0:00:01]} 27. Rc2 {[%emt 0:00:11]} Ra3 {[%emt 0:00:00]} 28. Nxb5 {
[%emt 0:00:05]} Rb3 {[%emt 0:00:02]} 29. Nd4 {[%emt 0:00:02]} Rxb4 {[%emt 0:00:
00]} 30. Qxd5 {[%emt 0:00:04]} Nxf4 {[%emt 0:00:13]} 31. Rxf4 {[%emt 0:00:04]}
Qe1+ {[%emt 0:00:00]} 32. Kg2 {[%emt 0:00:03]} Rb1 {[%emt 0:00:01]} 33. Qf3 {
[%emt 0:00:07]} Qg1+ {[%emt 0:00:06]} 34. Kh3 {[%emt 0:00:00]} Qg5 {[%emt 0:00:
04]} 35. e6 {[%emt 0:00:05]} Rg1 {[%emt 0:00:03]} 36. Rg2 {[%emt 0:00:07]} Qh6+
{[%emt 0:00:00]} 37. Rh4 {[%emt 0:00:02]} 1-0

[Event "RUS-ch Blitz 2021"]
[Site "Sochi"]
[Date "2021.10.11"]
[Round "8.9"]
[White "Makarian, Rudik"]
[Black "Sarana, Alexey"]
[Result "0-1"]
[ECO "D38"]
[WhiteElo "2470"]
[BlackElo "2649"]
[Annotator "ChessBase"]
[PlyCount "70"]
[EventDate "2021.10.11"]
[EventType "blitz"]
[EventCountry "RUS"]
[SourceTitle "playchess.com"]
[Source "ChessBase"]
[SourceQuality "1"]
[TimeControl "180+2"]

1. d4 {[%emt 0:00:00]} Nf6 {[%emt 0:00:00]} 2. c4 {[%emt 0:00:00]} e6 {[%emt 0:
00:00]} 3. Nf3 {[%emt 0:00:00]} d5 {[%emt 0:00:07]} 4. Nc3 {[%emt 0:00:05]} Bb4
{[%emt 0:00:00]} 5. Qa4+ {[%emt 0:00:00]} Nc6 {[%emt 0:00:00]} 6. a3 {[%emt 0:
00:00]} Bxc3+ {[%emt 0:00:00]} 7. bxc3 {[%emt 0:00:11]} Ne4 {[%emt 0:00:01]} 8.
Bf4 {[%emt 0:00:00]} Nxc3 {[%emt 0:00:00]} 9. Qc2 {[%emt 0:00:00]} Ne4 {
[%emt 0:00:00]} 10. e3 {[%emt 0:00:00]} g5 {[%emt 0:00:08]} 11. Bg3 {[%emt 0:
00:00]} h5 {[%emt 0:00:00]} 12. h4 {[%emt 0:00:00]} g4 {[%emt 0:00:27]} 13. Ng5
{[%emt 0:00:00]} Nxg3 {[%emt 0:00:17]} 14. fxg3 {[%emt 0:00:00]} Qd6 {[%emt 0:
00:03]} 15. Qf2 {[%emt 0:00:00]} f5 {[%emt 0:00:06]} 16. Bd3 {[%emt 0:00:04]}
Ne7 {[%emt 0:00:12]} 17. O-O {[%emt 0:00:02]} c6 {[%emt 0:00:00]} 18. Kh2 {
[%emt 0:00:23]} Bd7 {[%emt 0:00:00]} 19. Qb2 {[%emt 0:00:37]} b6 {[%emt 0:00:
07]} 20. e4 {[%emt 0:00:16]} dxe4 {[%emt 0:00:27]} 21. Bxe4 {[%emt 0:00:00]}
O-O {[%emt 0:00:12]} 22. Bc2 {[%emt 0:00:17]} Ng6 {[%emt 0:00:00]} 23. Rae1 {
[%emt 0:00:11]} Rae8 {[%emt 0:00:10]} 24. c5 {[%emt 0:00:06]} Qb8 {[%emt 0:00:
31]} 25. Bb3 {[%emt 0:00:06]} f4 {[%emt 0:00:35]} 26. Qc2 {[%emt 0:00:15]}
fxg3+ {[%emt 0:00:09]} 27. Kg1 {[%emt 0:00:04]} Kg7 {[%emt 0:00:00]} 28. Qd3 {
[%emt 0:00:43]} Rxf1+ {[%emt 0:00:05]} 29. Rxf1 {[%emt 0:00:04]} Rf8 {[%emt 0:
00:00]} 30. Bxe6 {[%emt 0:00:12]} Rxf1+ {[%emt 0:00:00]} 31. Qxf1 {[%emt 0:00:
02]} Be8 {[%emt 0:00:19]} 32. Ne4 {[%emt 0:00:13]} Qd8 {[%emt 0:00:00]} 33. d5
{[%emt 0:00:00]} cxd5 {[%emt 0:00:08]} 34. Qa1+ {[%emt 0:00:00]} d4 {[%emt 0:
00:00]} 35. Nd6 {[%emt 0:00:19]} bxc5 {[%emt 0:00:04]} 0-1